fUST/lending_fUST_20241004
["ID","MTS","AMOUNT","RATE_DAILY","PERIOD"]
[339783862,1727986251548,-150.112233,0.000138,2]
[339783863,1727986251562,-94.1497371,0.000138,2]
[339783872,1727986799492,-303.86713522,0.00011164,2]
[339783873,1727986799516,-300.0,0.00012578,2]
[339783874,1727986799539,-300.0,0.00012578,2]
[339783875,1727986799568,-24096.13286478,0.00012579,2]
[339783894,1727987321420,808.2718383,9e-05,2]
[339783896,1727987357285,-540.99429147,0.00010959,2]
[339783934,1727987431757,-308.43749623,0.00011164,2]
[339783937,1727987431771,-191.56250377,0.00011164,2]
[339783939,1727987431781,-1073.0683263,0.00012449,2]
[339783941,1727987431790,-76.96075989,0.00012586,2]
[339783988,1727987437616,-223.03924011,0.00012586,2]
[339783989,1727987437626,-300.0,0.00012586,2]
[339783990,1727987437635,-24900.0,0.00012587,2]
[339783991,1727987437645,-288.543829,0.00012603,2]
[339783992,1727987437654,-997.180405,0.00013205,2]
[339783993,1727987437663,-6781.19602992,0.0001361,2]
[339783994,1727987437673,-575.85847448,0.0001361,2]
[339783995,1727987437682,-171576.161428,0.00013668,2]
[339783996,1727987437692,-93577.7586896,0.00013668,2]
[339783997,1727987437701,-57815.22492953,0.00013669,2]
[339783998,1727987437717,-1826.1,0.00013669,2]
[339784009,1727987439752,-26146.75578447,0.00013669,2]
[339784010,1727987439762,-46788.8793448,0.00013669,2]
[339784011,1727987439777,-500.0,0.00013673,2]
[339784012,1727987439787,-500.0,0.00013673,2]
[339784013,1727987439799,-165.92349749,0.00013673,2]
[339784014,1727987439810,-42894.040357,0.00013678,2]
[339784015,1727987439823,-116972.198362,0.00013678,2]
[339784016,1727987439833,-46788.8793448,0.00013688,2]
[339784017,1727987439843,-153.48945029,0.0001369,2]
[339784018,1727987439854,-500.0,0.00013695,2]
[339784019,1727987439866,-151.0,0.00013698,2]
[339784020,1727987439875,-264.2538722,0.00013698,2]
[339784021,1727987439884,-500.0,0.00013698,2]
[339784022,1727987439895,-500.0,0.00013698,2]
[339784023,1727987439906,-500.0,0.00013698,2]
[339784024,1727987439916,-500.0,0.00013698,2]
[339784025,1727987439928,-500.0,0.00013698,2]
[339784026,1727987439939,-500.0,0.00013698,2]
[339784027,1727987439952,-594.1442392,0.00013698,2]
[339784028,1727987439961,-500.0,0.00013698,2]
[339784029,1727987439971,-500.0,0.00013698,2]
[339784030,1727987439983,-500.0,0.00013698,2]
[339784031,1727987439994,-500.0,0.00013698,2]
[339784032,1727987440003,-500.0,0.00013698,2]
[339784033,1727987440014,-500.0,0.00013698,2]
[339784034,1727987440025,-500.0,0.00013698,2]
[339784035,1727987440036,-343.71110319,0.00013698,2]
[339784036,1727987440046,-500.0,0.00013698,2]
[339784037,1727987440056,-500.0,0.00013698,2]
[339784038,1727987440067,-500.0,0.00013698,2]
[339784039,1727987440077,-500.0,0.00013698,2]
[339784040,1727987440086,-500.0,0.00013698,2]
[339784041,1727987440096,-500.0,0.00013698,2]
[339784042,1727987440106,-500.0,0.00013698,2]
[339784043,1727987440116,-500.0,0.00013698,2]
[339784044,1727987440127,-500.0,0.00013698,2]
[339784045,1727987440136,-500.0,0.00013698,2]
[339784046,1727987440146,-500.0,0.00013698,2]
[339784047,1727987440156,-500.0,0.00013698,2]
[339784048,1727987440166,-500.0,0.00013698,2]
[339784049,1727987440176,-151.0,0.00013698,2]
[339784050,1727987440186,-151.0,0.00013698,2]
[339784051,1727987440196,-151.0,0.00013698,2]
[339784052,1727987440205,-151.0,0.00013698,2]
[339784053,1727987440215,-151.0,0.00013698,2]
[339784054,1727987440225,-152.463246,0.00013698,2]
[339784055,1727987440234,-151.0,0.00013698,2]
[339784056,1727987440244,-151.0,0.00013698,2]
[339784057,1727987440254,-151.0,0.00013698,2]
[339784058,1727987440264,-151.0,0.00013698,2]
[339784059,1727987440274,-201.136136,0.00013698,2]
[339784060,1727987440284,-500.0,0.00013698,2]
[339784061,1727987440294,-151.0,0.00013698,2]
[339784062,1727987440303,-151.0,0.00013698,2]
[339784063,1727987440313,-151.0,0.00013698,2]
[339784064,1727987440322,-500.0,0.00013698,2]
[339784065,1727987440333,-161.29786596,0.00013698,2]
[339784066,1727987440345,-450.24952514,0.00013698,2]
[339784067,1727987440355,-500.0,0.00013698,2]
[339784068,1727987440366,-500.0,0.00013698,2]
[339784069,1727987440376,-500.0,0.00013698,2]
[339784070,1727987440386,-500.0,0.00013698,2]
[339784071,1727987440395,-500.0,0.00013698,2]
[339784072,1727987440406,-500.0,0.00013698,2]
[339784073,1727987440415,-500.0,0.00013698,2]
[339784074,1727987440425,-500.0,0.00013698,2]
[339784075,1727987440436,-589.46386146,0.00013698,2]
[339784076,1727987440446,-500.0,0.00013698,2]
[339784077,1727987440455,-500.0,0.00013698,2]
[339784078,1727987440466,-500.0,0.00013698,2]
[339784079,1727987440476,-198.6758023,0.00013698,2]
[339784080,1727987440492,-301.3241977,0.00013698,2]
[339784081,1727987440502,-500.0,0.00013698,2]
[339784082,1727987440512,-500.0,0.00013698,2]
[339784083,1727987440522,-500.0,0.00013698,2]
[339784084,1727987440531,-500.0,0.00013698,2]
[339784085,1727987440541,-221.04539597,0.00013698,2]
[339784086,1727987440550,-500.0,0.00013698,2]
[339784087,1727987440561,-143.76445519,0.00013698,2]
[339784101,1727987442745,-284.97044611,0.00013698,2]
[339784102,1727987442757,-500.0,0.00013698,2]
[339784103,1727987442768,-500.0,0.00013698,2]
[339784104,1727987442778,-500.0,0.00013698,2]
[339784105,1727987442788,-344.62508349,0.00013698,2]
[339784106,1727987442798,-500.0,0.00013698,2]
[339784107,1727987442808,-531.31,0.00013698,2]
[339784108,1727987442818,-592.2,0.00013698,2]
[339784109,1727987442832,-569.47,0.00013698,2]
[339784110,1727987442842,-500.0,0.00013698,2]
[339784111,1727987442852,-500.0,0.00013698,2]
[339784112,1727987442863,-500.0,0.00013698,2]
[339784113,1727987442873,-460.57554781,0.00013698,2]
[339784116,1727987442913,-40.30445219,0.00013698,2]
[339784117,1727987442923,-500.0,0.00013698,2]
[339784118,1727987442934,-517.13,0.00013698,2]
[339784119,1727987442944,-500.0,0.00013698,2]
[339784120,1727987442954,-500.0,0.00013698,2]
[339784121,1727987442964,-500.0,0.00013698,2]
[339784122,1727987442981,-500.0,0.00013698,2]
[339784123,1727987442992,-138.12269869,0.00013698,2]
[339784124,1727987443008,-361.87730131,0.00013698,2]
[339784125,1727987443017,-204.65812424,0.00013698,2]
[339784132,1727987445707,-155.64585504,0.00013698,2]
[339784133,1727987445719,-887.93,0.00013698,2]
[339784134,1727987445731,-616.04,0.00013698,2]
[339784135,1727987445742,-535.80295576,0.00013698,2]
[339784136,1727987445756,-500.0,0.00013698,2]
[339784137,1727987445766,-500.0,0.00013698,2]
[339784138,1727987445776,-500.0,0.00013698,2]
[339784139,1727987445786,-408.16503961,0.00013698,2]
[339784140,1727987445795,-484.00611093,0.00013698,2]
[339784141,1727987445806,-500.0,0.00013698,2]
[339784142,1727987445816,-500.0,0.00013698,2]
[339784143,1727987445832,-500.0,0.00013698,2]
[339784144,1727987445846,-452.5687318,0.00013698,2]
[339784145,1727987445859,-47.4312682,0.00013698,2]
[339784146,1727987445869,-500.0,0.00013698,2]
[339784147,1727987445879,-500.0,0.00013698,2]
[339784148,1727987445889,-500.0,0.00013698,2]
[339784149,1727987445900,-500.0,0.00013698,2]
[339784150,1727987445910,-500.0,0.00013698,2]
[339784151,1727987445920,-452.5687318,0.00013698,2]
[339792632,1727987535661,-796.35,0.000163,31]
[339792637,1727987535693,-796.35,0.000163,31]
[339792641,1727987535724,-796.35,0.000163,31]
[339792645,1727987535755,-796.35,0.000163,31]
[339792650,1727987535786,-796.35,0.000163,31]
[339792654,1727987535816,-796.35,0.000163,31]
[339792658,1727987535845,-796.35,0.000163,31]
[339792662,1727987535877,-796.35,0.000163,31]
[339792666,1727987535905,-796.35,0.000163,31]
[339792670,1727987535932,-796.35,0.000163,31]
[339792675,1727987535965,-796.35,0.000163,31]
[339792679,1727987535994,-796.35,0.000163,31]
[339792683,1727987536022,-796.35,0.000163,31]
[339792687,1727987536053,-796.35,0.000163,31]
[339792692,1727987536083,-796.35,0.000163,31]
[339792696,1727987536111,-796.35,0.000163,31]
[339792715,1727987536278,-796.35,0.000189,31]
[339792719,1727987536306,-796.35,0.000189,31]
[339792723,1727987536334,-796.35,0.000189,31]
[339792727,1727987536363,-796.35,0.000189,31]
[339792730,1727987536392,-796.35,0.000189,31]
[339792734,1727987536420,-796.35,0.000189,31]
[339792738,1727987536449,-796.35,0.000189,31]
[339792742,1727987536477,-796.35,0.000189,31]
[339792746,1727987536506,-796.35,0.000189,31]
[339792750,1727987536534,-796.35,0.000189,31]
[339792754,1727987536563,-796.35,0.000189,31]
[339792758,1727987536593,-796.35,0.000189,31]
[339792762,1727987536621,-796.35,0.000189,31]
[339792766,1727987536650,-796.35,0.000189,31]
[339792790,1727987536889,-796.35,0.000189,31]
[339792794,1727987536918,-796.35,0.000189,31]
[339792797,1727987536949,-796.35,0.000189,31]
[339792801,1727987536979,-796.35,0.000189,31]
[339792805,1727987537008,-796.35,0.000189,31]
[339792809,1727987537036,-796.35,0.000189,31]
[339792813,1727987537064,-796.35,0.000189,31]
[339792817,1727987537092,-796.35,0.000189,31]
[339792821,1727987537119,-796.35,0.000189,31]
[339792825,1727987537147,-796.35,0.000189,31]
[339792835,1727987537235,-280.47933439,0.00021,30]
[339792839,1727987537261,-10000.0,0.00021,30]
[339792842,1727987537286,-5646.53943879,0.00021,30]
[339792846,1727987537312,-27845.0,0.00021,30]
[339792850,1727987537338,-372.98250432,0.000212,30]
[339792854,1727987537370,-796.35,0.000215,31]
[339792858,1727987537399,-796.35,0.000215,31]
[339792862,1727987537428,-796.35,0.000215,31]
[339792866,1727987537456,-796.35,0.000215,31]
[339792870,1727987537485,-796.35,0.000215,31]
[339792873,1727987537513,-796.35,0.000215,31]
[339792877,1727987537541,-796.35,0.000215,31]
[339792881,1727987537568,-796.35,0.000215,31]
[339792885,1727987537595,-796.35,0.000215,31]
[339792889,1727987537623,-796.35,0.000215,31]
[339792893,1727987537650,-796.35,0.000215,31]
[339792897,1727987537678,-796.35,0.000215,31]
[339792900,1727987537705,-796.35,0.000215,31]
[339792904,1727987537733,-796.35,0.000215,31]
[339792908,1727987537760,-796.35,0.000215,31]
[339792912,1727987537787,-796.35,0.000215,31]
[339792916,1727987537815,-796.35,0.000215,31]
[339792920,1727987537844,-796.35,0.000215,31]
[339792924,1727987537877,-796.35,0.000215,31]
[339792928,1727987537907,-796.35,0.000215,31]
[339792932,1727987537937,-796.35,0.000215,31]
[339792936,1727987537968,-796.35,0.000215,31]
[339792940,1727987537997,-796.35,0.000215,31]
[339792944,1727987538028,-796.35,0.000215,31]
[339792948,1727987538057,-196.72,0.00021918,60]
[339792952,1727987538091,-285.54325163,0.00022,30]
[339792956,1727987538118,-6391.63404468,0.00022,30]
[339792959,1727987538145,-151.0,0.0002206,120]
[339792963,1727987538171,-960.0,0.00023,30]
[339792967,1727987538198,-1000.0,0.00023,120]
[339792970,1727987538225,-151.0,0.0002311,120]
[339792974,1727987538253,-162.689631,0.00023836,31]
[339792978,1727987538280,-162.689631,0.00023836,38]
[339792982,1727987538310,-162.689631,0.00023836,46]
[339792986,1727987538336,-162.689631,0.00023836,53]
[339792989,1727987538362,-162.689631,0.00023836,61]
[339792993,1727987538387,-162.689631,0.00023836,68]
[339792996,1727987538414,-162.689631,0.00023836,75]
[339793000,1727987538443,-162.689631,0.00023836,83]
[339793004,1727987538468,-162.689631,0.00023836,90]
[339793007,1727987538494,-162.689631,0.00023836,97]
[339793011,1727987538519,-162.689631,0.00023836,105]
[339793015,1727987538545,-162.689631,0.00023836,112]
[339793018,1727987538570,-162.689631,0.00023836,120]
[339793022,1727987538595,-500.0,0.00024,120]
[339793026,1727987538622,-1000.0,0.00024,120]
[339793029,1727987538651,-796.35,0.00024,31]
[339793033,1727987538683,-796.35,0.00024,31]
[339793037,1727987538712,-796.35,0.00024,31]
[339793041,1727987538740,-796.35,0.00024,31]
[339793045,1727987538768,-796.35,0.00024,31]
[339793049,1727987538796,-796.35,0.00024,31]
[339793053,1727987538826,-796.35,0.00024,31]
[339793056,1727987538855,-796.35,0.00024,31]
[339793060,1727987538884,-796.35,0.00024,31]
[339793064,1727987538914,-796.35,0.00024,31]
[339793068,1727987538948,-796.35,0.00024,31]
[339793072,1727987538984,-796.35,0.00024,31]
[339793076,1727987539014,-796.35,0.00024,31]
[339793079,1727987539041,-796.35,0.00024,31]
[339793083,1727987539072,-796.35,0.00024,31]
[339793087,1727987539101,-796.35,0.00024,31]
[339793091,1727987539129,-796.35,0.00024,31]
[339793095,1727987539159,-796.35,0.00024,31]
[339793099,1727987539190,-796.35,0.00024,31]
[339793103,1727987539219,-796.35,0.00024,31]
[339793107,1727987539248,-796.35,0.00024,31]
[339793111,1727987539277,-796.35,0.00024,31]
[339793115,1727987539308,-796.35,0.00024,31]
[339793119,1727987539338,-796.35,0.00024,31]
[339793123,1727987539365,-1000.5,0.00025,31]
[339793126,1727987539390,-1000.5,0.00025,31]
[339793130,1727987539415,-1000.5,0.00025,31]
[339793133,1727987539448,-1000.5,0.00025,31]
[339793137,1727987539474,-557.6,0.00025,31]
[339793140,1727987539501,-469.33327444,0.00025,60]
[339793144,1727987539526,-200.0,0.00025,120]
[339793147,1727987539551,-311.78254249,0.00025,120]
[339793151,1727987539581,-1132.89096037,0.00025,120]
[339793155,1727987539606,-1000.0,0.00025,120]
[339793158,1727987539633,-6201.9530979,0.00025,30]
[339793162,1727987539658,-480.0,0.00025,30]
[339793165,1727987539684,-619.98572318,0.00025,120]
[339793185,1727987539896,-451.02188557,0.00025,30]
[339793188,1727987539926,-500.0,0.00026,120]
[339793192,1727987539954,-1248.0,0.00026,120]
[339793195,1727987539981,-500.0,0.0002601,30]
[339793199,1727987540008,-500.0,0.0002601,30]
[339793202,1727987540035,-500.0,0.0002601,30]
[339793206,1727987540060,-500.0,0.0002601,30]
[339793209,1727987540085,-500.0,0.0002601,30]
[339793213,1727987540112,-500.0,0.0002601,30]
[339793216,1727987540139,-500.0,0.0002601,30]
[339793220,1727987540164,-500.0,0.0002601,30]
[339793223,1727987540191,-500.0,0.0002601,30]
[339793227,1727987540217,-500.0,0.0002601,30]
[339793231,1727987540248,-503.0560012,0.0002601,30]
[339793235,1727987540276,-500.0,0.0002601,30]
[339793238,1727987540302,-500.0,0.0002601,30]
[339793242,1727987540329,-500.0,0.0002601,30]
[339793245,1727987540355,-500.0,0.0002601,30]
[339793248,1727987540382,-837.38859488,0.0002601,30]
[339793249,1727987540409,-700.0,0.0002601,30]
[339793250,1727987540437,-500.0,0.0002601,30]
[339793251,1727987540463,-700.0,0.0002601,30]
[339793252,1727987540488,-500.0,0.0002601,30]
[339793253,1727987540514,-700.0,0.0002601,30]
[339793254,1727987540539,-500.0,0.0002601,30]
[339793255,1727987540565,-500.0,0.0002601,30]
[339793256,1727987540591,-700.0,0.0002601,30]
[339793257,1727987540617,-500.0,0.0002601,30]
[339793258,1727987540642,-500.0,0.0002601,30]
[339793260,1727987540668,-500.0,0.0002601,30]
[339793264,1727987540694,-700.0,0.0002601,30]
[339793268,1727987540720,-700.0,0.0002601,30]
[339793271,1727987540745,-500.0,0.0002601,30]
[339793275,1727987540772,-700.0,0.0002601,30]
[339793279,1727987540797,-700.0,0.0002601,30]
[339793282,1727987540823,-700.0,0.0002601,30]
[339793286,1727987540849,-700.0,0.0002601,30]
[339793290,1727987540878,-700.0,0.0002601,30]
[339793293,1727987540905,-700.0,0.0002601,30]
[339793297,1727987540932,-700.0,0.0002601,30]
[339793301,1727987540964,-700.0,0.0002601,30]
[339793305,1727987540991,-884.31219622,0.0002601,30]
[339793309,1727987541018,-500.0,0.0002601,30]
[339793312,1727987541043,-502.47615752,0.0002601,30]
[339793316,1727987541069,-500.0,0.0002601,30]
[339793320,1727987541095,-500.0,0.0002601,30]
[339793323,1727987541120,-500.0,0.0002601,30]
[339793327,1727987541146,-500.0,0.0002601,30]
[339793331,1727987541171,-500.0,0.0002601,30]
[339793334,1727987541198,-500.0,0.0002601,30]
[339793338,1727987541225,-500.0,0.0002601,30]
[339793341,1727987541251,-500.0,0.0002601,30]
[339793345,1727987541276,-500.0,0.0002601,30]
[339793349,1727987541302,-891.82928336,0.0002601,30]
[339793353,1727987541331,-500.0,0.0002601,30]
[339793356,1727987541357,-500.0,0.0002601,30]
[339793360,1727987541383,-151.0,0.0002626,120]
[339793364,1727987541411,-150.0,0.00026458,120]
[339793369,1727987541455,-796.35,0.000266,31]
[339793374,1727987541491,-796.35,0.000266,31]
[339793378,1727987541523,-796.35,0.000266,31]
[339793383,1727987541554,-796.35,0.000266,31]
[339793387,1727987541584,-796.35,0.000266,31]
[339793391,1727987541615,-796.35,0.000266,31]
[339793395,1727987541647,-796.35,0.000266,31]
[339793399,1727987541678,-796.35,0.000266,31]
[339793403,1727987541709,-796.35,0.000266,31]
[339793407,1727987541738,-796.35,0.000266,31]
[339793411,1727987541767,-796.35,0.000266,31]
[339793416,1727987541798,-796.35,0.000266,31]
[339793420,1727987541826,-431.0,0.00026849,120]
[339793423,1727987541855,-425.09424,0.00027,120]
[339793427,1727987541886,-200.0,0.00027,120]
[339793431,1727987541913,-189.18997674,0.00027,120]
[339793435,1727987541942,-5000.0,0.00027,30]
[339793439,1727987541972,-200.0,0.00027,120]
[339793442,1727987541999,-5000.0,0.00027,30]
[339793446,1727987542025,-4591.18,0.00027,30]
[339793450,1727987542053,-513.62,0.00027,30]
[339793453,1727987542080,-5000.0,0.00027,30]
[339793457,1727987542107,-200.0,0.00027,120]
[339793461,1727987542133,-100000.0,0.00027,30]
[339793465,1727987542168,-576.59987374,0.00027397,60]
[339793469,1727987542197,-500.0,0.00027397,30]
[339793473,1727987542225,-500.0,0.00027397,60]
[339793477,1727987542254,-500.0,0.00027397,90]
[339793481,1727987542279,-507.0,0.00027397,120]
[339793484,1727987542305,-245.9,0.00027397,120]
[339793488,1727987542334,-253.34218,0.000274,120]
[339793492,1727987542361,-1031.48312349,0.000278,120]
[339793496,1727987542388,-15000.0,0.000279,60]
[339793499,1727987542415,-192.72393534,0.0002799,60]
[339793503,1727987542447,-1000.0,0.00028,120]
[339793507,1727987542474,-500.0,0.00028,120]
[339793511,1727987542501,-2031.0,0.00029,30]
[339793515,1727987542527,-2000.0,0.00029,30]
[339793518,1727987542553,-542.91130345,0.00029,30]
[339793522,1727987542582,-200.57305812,0.00029014,30]
[339793526,1727987542608,-200.57305811,0.00029397,30]
[339793530,1727987542635,-151.0,0.0002941,120]
[339793534,1727987542661,-738.37017069,0.0002988,30]
[339793537,1727987542689,-1380.92897321,0.0003,60]
[339793541,1727987542716,-500.0,0.0003,120]
[339793545,1727987542743,-3944.0,0.0003,60]
[339793566,1727987542962,-2720.0,0.0003,60]
[339793570,1727987542990,-151.0,0.0003,120]
[339793574,1727987543016,-30000.0,0.0003,30]
[339793577,1727987543044,-400.0,0.00030137,60]
[339793578,1727987543071,-4972.601,0.00030322,30]
[339793579,1727987543098,-2549.28656646,0.00031,120]
[339793581,1727987543125,-1873.0,0.00031666,120]
[339793584,1727987543152,-500.34,0.0003184,120]
[339793588,1727987543177,-2120.0,0.00032,120]
[339793591,1727987543203,-2000.0,0.00032,30]
[339793595,1727987543230,-200.0,0.00032,120]
[339793599,1727987543256,-4050.91,0.00032,32]
[339793603,1727987543284,-548.55,0.00032,120]
[339793607,1727987543311,-253.46575,0.00032,30]
[339793610,1727987543337,-151.0,0.00032137,120]
[339793614,1727987543363,-201.26,0.000323,120]
[339793618,1727987543389,-500.0,0.00032328,120]
[339793621,1727987543414,-500.0,0.0003233,120]
[339793625,1727987543440,-549.31,0.000325,120]
[339793629,1727987543472,-12464.648,0.000325,120]
[339793633,1727987543497,-12464.649,0.000325,120]
[339793636,1727987543522,-12464.648,0.000325,120]
[339793640,1727987543548,-12464.649,0.000325,120]
[339793644,1727987543576,-12464.649,0.000325,120]
[339793648,1727987543603,-151.0,0.0003257,120]
[339793653,1727987543638,-1513.39,0.00032876,120]
[339793657,1727987543666,-1513.39,0.00032876,120]
[339793661,1727987543692,-1513.39,0.00032876,120]
[339793664,1727987543718,-1513.39,0.00032876,120]
[339793668,1727987543743,-1513.39,0.00032876,120]
[339793672,1727987543768,-1513.39,0.00032876,120]
[339793675,1727987543792,-1513.39,0.00032876,120]
[339793679,1727987543817,-1513.39,0.00032876,120]
[339793682,1727987543842,-1513.39,0.00032876,120]
[339793686,1727987543870,-1513.39,0.00032876,120]
[339793690,1727987543896,-1513.39,0.00032876,120]
[339793693,1727987543922,-1513.39,0.00032876,120]
[339793697,1727987543953,-1513.39,0.00032876,120]
[339793701,1727987543980,-1513.39,0.00032876,120]
[339793705,1727987544006,-1513.39,0.00032876,120]
[339793709,1727987544032,-1513.39,0.00032876,120]
[339793713,1727987544059,-1513.39,0.00032876,120]
[339793716,1727987544085,-1513.39,0.00032876,120]
[339793720,1727987544112,-1513.39,0.00032876,120]
[339793724,1727987544139,-1513.39,0.00032876,120]
[339793728,1727987544167,-1513.39,0.00032876,120]
[339793732,1727987544195,-1513.39,0.00032876,120]
[339793736,1727987544222,-1513.39,0.00032876,120]
[339793739,1727987544249,-1513.58223499,0.00032876,120]
[339793743,1727987544276,-400.0,0.00032877,60]
[339793747,1727987544302,-982.0,0.000329,30]
[339793751,1727987544329,-1000.0,0.00033,30]
[339793755,1727987544356,-918.6106898,0.00033,30]
[339793758,1727987544383,-417.4893071,0.00033,120]
[339793762,1727987544412,-500.0,0.00033,120]
[339793766,1727987544440,-500.0,0.00033,120]
[339793770,1727987544468,-3467.36910015,0.00033,30]
[339793774,1727987544497,-4000.0,0.00033,30]
[339793778,1727987544523,-1368.52195892,0.00033,120]
[339793782,1727987544551,-714.2,0.00033,120]
[339793785,1727987544578,-1500.0,0.00033187,120]
[339793789,1727987544604,-151.01,0.000332,30]
[339793793,1727987544632,-539.91,0.000335,120]
[339793798,1727987544673,-500.0,0.00034,120]
[339793802,1727987544700,-250.0,0.00034,30]
[339793806,1727987544727,-500.0,0.0003423,120]
[339793810,1727987544755,-151.0,0.00034274,120]
[339793814,1727987544784,-500.28,0.000345,120]
[339793818,1727987544813,-560.17721072,0.00035,120]
[339793822,1727987544840,-912.13898274,0.00035,120]
[339793825,1727987544869,-46384.58184093,0.00035,30]
[339793829,1727987544897,-500.0,0.00035,120]
[339793833,1727987544926,-200.0,0.00035,120]
[339793837,1727987544957,-2000.0,0.00035,30]
[339793841,1727987544983,-1997.0,0.00035,120]
[339793844,1727987545011,-1562.8,0.00035,60]
[339793848,1727987545040,-3617.96,0.00035616,120]
[339793852,1727987545068,-400.0,0.00035616,60]
[339793856,1727987545096,-2560.940334,0.00035616,120]
[339793860,1727987545125,-400.0,0.00036,120]
[339793864,1727987545153,-3336.95,0.00036,30]
[339793868,1727987545179,-500.0,0.00036,120]
[339793872,1727987545207,-500.0,0.00036,120]
[339793876,1727987545235,-250.0,0.00036,30]
[339793879,1727987545261,-151.0,0.00036411,120]
[339793883,1727987545288,-341.17534005,0.000365,120]
[339793887,1727987545316,-3617.96,0.00036575,120]
[339793891,1727987545344,-1000.0,0.00036986,60]
[339793894,1727987545371,-1000.0,0.00036986,60]
[339793898,1727987545395,-1000.0,0.00036986,60]
[339793902,1727987545420,-1000.0,0.00036986,60]
[339793905,1727987545446,-1000.0,0.00036986,60]
[339793909,1727987545471,-1000.0,0.00036986,60]
[339793912,1727987545500,-1000.0,0.00036986,60]
[339793916,1727987545529,-188.44206725,0.00036986,60]
[339793920,1727987545559,-1136.94243753,0.0003707,31]
[339793924,1727987545587,-500.0,0.000372,120]
[339793928,1727987545614,-182022.88053161,0.00037484,120]
[339793932,1727987545644,-541.09,0.000375,120]
[339793935,1727987545671,-3617.96,0.00037534,120]
[339793939,1727987545701,-1035.61,0.00037808,32]
[339793943,1727987545727,-2090.87547771,0.000379,60]
[339793947,1727987545753,-95677.88211364,0.00038,120]
[339793967,1727987545950,-474.01234139,0.00038,120]
[339793971,1727987545986,-500.0,0.00038,120]
[339793975,1727987546012,-2365.0,0.00038,30]
[339793978,1727987546039,-250.0,0.00038,30]
[339793982,1727987546067,-1865.88,0.0003828,48]
[339793986,1727987546094,-4406.16,0.00038356,120]
[339793990,1727987546121,-500.0,0.00038356,120]
[339793993,1727987546148,-407.87000208,0.00038356,120]
[339793997,1727987546174,-500.0,0.00038356,120]
[339794001,1727987546202,-500.0,0.00038356,120]
[339794004,1727987546229,-500.0,0.00038356,120]
[339794008,1727987546255,-500.0,0.00038356,120]
[339794012,1727987546282,-358.81727155,0.00038356,120]
[339794015,1727987546308,-500.0,0.00038356,120]
[339794019,1727987546334,-261.56878747,0.00038356,120]
[339794022,1727987546360,-401.6890036,0.00038356,120]
[339794026,1727987546391,-500.0,0.00038356,120]
[339794030,1727987546417,-500.0,0.00038356,30]
[339794033,1727987546444,-1000.0,0.00038356,80]
[339794037,1727987546471,-1000.0,0.00038356,84]